Cogmind - Beta 11.1 @@@ ROGUE MODE // 2022.06.03 @ 23:00:13 Player: darki Result: Destroyed by S-10 Pest with Light Assault Rifle Performance ------------- Evolutions (2) 1000 Regions Visited (8) 1600 Robots Destroyed (44) 220 Value Destroyed (1548) 1548 Prototype IDs (23) 460 Alien Tech Used (0) 0 Bonus (1174) 1174 TOTAL SCORE: 6002 Bonus ------- Follower Combat Kills 174 Entered Garrisons 200 Used RIF Installer 500 Aligned with FarCom 300 Cogmind --------- Core Integrity 0/550 Matter 141/300 Energy 18/100 System Corruption 1% Temperature Cool (0) Movement Core (50) Location -8/Garrison Parts ------- > --- POWER (1) -------- (None) > --- PROPULSION (4) --- (None) > --- UTILITY (4) ------ Hacking Suite Relay Coupler [Swarmer] (41) > --- WEAPON (2) ------- (None) > --- INVENTORY (5) ---- Medium Storage Unit Superbattery (1486) Utility Shielding Relay Coupler [NC] (23) Scythe Peak State ------------ > --- POWER ------------ (None) > --- PROPULSION ------- Flight Unit Flight Unit Surge Thruster > --- UTILITY ---------- Medium Storage Unit Superbattery Weight Redist. System Hacking Suite > --- WEAPON ----------- Remote Datajack > --- INVENTORY -------- Utility Shielding Relay Coupler [NC] Katana Scythe [Rating: 25] Favorites ----------- Power Ion Engine Engine Ion Engine Power Core Light Nuclear Core Propulsion Aluminum Leg Leg Aluminum Leg Flight Unit Flight Unit Utility Medium Storage Unit Device Heat Sink Storage Medium Storage Unit Processor Targeting Computer Hackware Hacking Suite Protection Light Armor Plating Weapon Hammer Energy Gun Small Laser Energy Cannon Particle Cannon Ballistic Gun Assault Rifle Launcher Rocket Launcher Special Weapon Remote Datajack Impact Weapon Hammer Slashing Weapon Katana Build | -11 -10 -10 -9 -9 -9 -8 -8 -8 ------- Run | Scr Mat Min Mat Min Exi Min Mat Gar Slots Evolved 4 | . . . 2 . . . 2 . Power . | . . . . . . . . . Propulsion 2 | . . . . . . . 2 . Utility 2 | . . . 2 . . . . . Weapon . | . . . . . . . . . Parts Attached 64 | . 10 6 3 10 . . 3 32 Power 10 | . 2 1 . 1 . . . 6 Engine 7 | . 2 1 . 1 . . . 3 Core 3 | . . . . . . . . 3 Reactor . | . . . . . . . . . Propulsion 30 | . 3 3 1 3 . . 1 19 Treads . | . . . . . . . . . Leg 16 | . 3 2 1 3 . . . 7 Wheel . | . . . . . . . . . Hover . | . . . . . . . . . Flight 14 | . . 1 . . . . 1 12 Utility 12 | . 1 2 1 3 . . 1 4 Device 6 | . 1 . 1 2 . . . 2 Storage 2 | . . 1 . . . . . 1 Processor 1 | . . 1 . . . . . . Hackware 2 | . . . . . . . 1 1 Protection 1 | . . . . 1 . . . . Artifact . | . . . . . . . . . Weapon 12 | . 4 . 1 3 . . 1 3 Energy Gun . | . . . . . . . . . Energy Cannon 3 | . 3 . . . . . . . Ballistic Gun 1 | . 1 . . . . . . . Ballistic Cannon . | . . . . . . . . . Launcher 1 | . . . . . . . . 1 Special Weapon 1 | . . . . . . . . 1 Impact Weapon 2 | . . . . 2 . . . . Slashing Weapon 4 | . . . 1 1 . . 1 1 Piercing Weapon . | . . . . . . . . . Special Melee Weapon . | . . . . . . . . . Unidentified Prototypes . | . . . . . . . . . Parts Lost 33 | . 3 2 . 5 . . . 23 Power 6 | . 1 . . . . . . 5 Propulsion 15 | . . 2 . . . . . 13 Utility 6 | . . . . 3 . . . 3 Weapon 6 | . 2 . . 2 . . . 2 Highest Loss Streak 10 | . 2 2 . 3 . . . 10 To Critical Strikes . | . . . . . . . . . Average Slot Usage (%) 89 | . 93 99 87 87 88 88 84 83 Engine 10 | . 13 14 11 11 11 11 9 2 Leg 22 | . 27 22 22 22 22 22 18 21 Flight 1 | . . 5 . . . . 7 8 Device 9 | . 9 2 10 10 11 11 9 11 Storage 11 | . 14 14 11 11 11 11 9 8 Processor 4 | . . 11 11 5 . . . . Hackware 1 | . . . . . . . 5 9 Protection 4 | . . . . 5 11 11 9 2 Energy Cannon 7 | . 18 28 11 . . . . . Impact Weapon 6 | . . . . 12 11 11 . . Slashing Weapon 7 | . . . 10 9 11 11 17 11 Naked Turns . | . . . . . . . . . Heaviest Build 25 | 13 19 23 23 25 25 25 25 25 Greatest Support 43 | 20 20 20 20 20 20 20 20 43 Greatest Overweight (x) 3 | . 1 2 1 1 1 1 1 3 Average Overweight (x) . | . . 1 1 . 1 1 1 . Largest Inventory Capacity 10 | . 8 10 10 10 10 10 10 10 Average Capacity 9 | . 8 9 10 10 10 10 10 9 Most Carried 10 | . 8 10 10 10 10 10 10 10 Average Carried 9 | . 7 8 9 9 9 10 10 8 Final Capacity 10 | 8 8 10 10 10 10 10 10 5 Final Carried 10 | 6 8 10 10 10 10 10 10 5 Class Distribution -------------------- 80% | Scavenger-Mutant 17% | Mutant Dominant Class ---------------- Scavenger-Mutant | -10/Materials Mutant | -10/Mines Scavenger-Mutant | -9/Materials Scavenger-Mutant | -9/Mines Scavenger-Mutant | -9/Exiles Scavenger-Mutant | -8/Mines Scavenger-Mutant | -8/Materials Scavenger-Mutant | -8/Garrison Resources | -11 -10 -10 -9 -9 -9 -8 -8 -8 ----------- Run | Scr Mat Min Mat Min Exi Min Mat Gar Matter Collected 711 | 200 106 55 20 125 . . . 205 Remotely . | . . . . . . . . . Salvage Created 1567 | . 493 220 89 475 . . . 290 Parts 84 | . 30 10 5 21 . . . 18 Haulers Intercepted 2 | . 2 . . . . . . . Recyclers Shooed 1 | . . . . 1 . . . . Parts Field Recycled . | . . . . . . . . . Retrieved Matter . | . . . . . . . . . Parts Self-Destructed . | . . . . . . . . . Prevented . | . . . . . . . . . Kills | -11 -10 -10 -9 -9 -9 -8 -8 -8 ------- Run | Scr Mat Min Mat Min Exi Min Mat Gar Combat Hostiles Destroyed 36 | . 11 5 2 8 . . . 10 Melee 15 | . . . 2 8 . . . 5 Guns 2 | . 2 . . . . . . . Cannons 13 | . 8 5 . . . . . . AOE 5 | . . . . . . . . 5 Classes Destroyed 10 | . 4 1 . 3 . . . 2 Builder 1 | . . . . 1 . . . . Tunneler 1 | . . . . 1 . . . . Hauler 2 | . 2 . . . . . . . Recycler 2 | . . 1 . 1 . . . . Watcher 2 | . 2 . . . . . . . Swarmer 11 | . 5 3 . . . . . 3 Cutter 1 | . . . . . . . . 1 Grunt 22 | . 6 2 2 7 . . . 5 Brawler 1 | . . . . 1 . . . . Duelist 1 | . . . . . . . . 1 Best Kill Streak 7 | . 7 3 2 5 . . . 6 Combat Bots Only 6 | . 3 3 2 4 . . . 6 Max Kills in Single Turn 3 | . 1 1 1 1 . . . 3 Gunslinging . | . . . . . . . . . Exploded 3 | . . . . . . . . 3 Melee 1 | . . . 1 1 . . . 1 Uniques/NPCs Destroyed . | . . . . . . . . . Combat | -11 -10 -10 -9 -9 -9 -8 -8 -8 -------- Run | Scr Mat Min Mat Min Exi Min Mat Gar Damage Taken 3527 | . 707 238 125 554 . . . 1903 Core 925 | . 93 48 57 171 . . . 556 Absorbed by Shields 22 | . . . . . . . . 22 Core Remaining (%) 62 | 100 . 43 . . . 43 . . Volleys Fired 58 | . 33 17 . . . . . 8 Largest 2 | . 2 2 . . . . . 1 Hottest 136 | . 136 136 . . . . . 33 Shots Fired 106 | . 64 34 . . . . . 8 Gun 8 | . 8 . . . . . . . Cannon 90 | . 56 34 . . . . . . Launcher 6 | . . . . . . . . 6 Special 2 | . . . . . . . . 2 Kinetic 7 | . 7 . . . . . . . Thermal 91 | . 57 34 . . . . . . Explosive 6 | . . . . . . . . 6 Electromagnetic . | . . . . . . . . . Robot Hit Streak 7 | . 5 6 . . . . . 7 Robot Miss Streak 4 | . 4 4 . . . . . . Penetration Max . | . . . . . . . . . Secondary Targets . | . . . . . . . . . Shots Hit Robots 112 | . 38 19 3 28 . . . 24 Core Hits 49 | . 16 7 2 10 . . . 14 Critical Kills 1 | . 1 . . . . . . . Critical Parts Destroyed . | . . . . . . . . . Critical Strikes 8 | . 1 . . 2 . . . 5 Meltdown 1 | . 1 . . . . . . . Sever 7 | . . . . 2 . . . 5 Melee Attacks 68 | . . . 5 39 . . . 24 Impact 8 | . . . . 8 . . . . Slashing 60 | . . . 5 31 . . . 24 Piercing . | . . . . . . . . . Sneak Attacks 6 | . . . 1 5 . . . . Combat Hostiles . | . . . . . . . . . Follow-up Attacks 6 | . . . . 5 . . . 1 Damage Inflicted 3308 | . 749 412 136 1051 . . . 960 Guns 73 | . 73 . . . . . . . Cannons 1088 | . 676 412 . . . . . . Explosions 456 | . . . . . . . . 456 Melee 1691 | . . . 136 1051 . . . 504 Ramming . | . . . . . . . . . Kinetic 73 | . 73 . . . . . . . Thermal 1088 | . 676 412 . . . . . . Explosive 456 | . . . . . . . . 456 Electromagnetic . | . . . . . . . . . Impact 224 | . . . . 224 . . . . Slashing 1467 | . . . 136 827 . . . 504 Piercing . | . . . . . . . . . Highest Corruption 6 | . . . . 6 6 6 . 1 Average Corruption 5 | . . . . 5 6 6 . 1 Corruption Purged . | . . . . . . . . . Corruption Blocked . | . . . . . . . . . Effects 40 | . . . . 24 14 1 . 1 Message Errors 7 | . . . . 7 . . . . Matter Fused 9 | . . . . 3 5 1 . . Heat Flow Errors 8 | . . . . 4 4 . . . Energy Discharges 7 | . . . . 4 3 . . . Data Loss (minor) 4 | . . . . 3 . . . 1 Data Loss (major) 3 | . . . . 2 1 . . . Alerts 2 | . . . . 1 1 . . . Overload Shots . | . . . . . . . . . Overflow Damage 140 | . . 2 . 108 . . . 30 Projectiles 2 | . . 2 . . . . . . Explosions . | . . . . . . . . . Melee 138 | . . . . 108 . . . 30 Knockbacks . | . . . . . . . . . Impact . | . . . . . . . . . Kinetic . | . . . . . . . . . Secondary . | . . . . . . . . . Self-Inflicted Damage 55 | . . . . . . . . 55 Shots 2 | . . . . . . . . 2 Rammed . | . . . . . . . . . Targets Rammed . | . . . . . . . . . Kicked . | . . . . . . . . . Crushed . | . . . . . . . . . Highest Temperature 401 | . 376 401 . 218 213 . . . Average Temperature 139 | . 116 200 . 103 94 . . . Received Heat Transfer 1212 | . 336 36 45 237 . . . 558 Effects 2 | . . 2 . . . . . . Shutdowns 1 | . . 1 . . . . . . Damage (minor) 1 | . . 1 . . . . . . Siege Activations . | . . . . . . . . . Robots Corrupted . | . . . . . . . . . Combat Hostiles . | . . . . . . . . . Parts Fried . | . . . . . . . . . Impact Corruptions . | . . . . . . . . . Robots Melted 1 | . 1 . . . . . . . Combat Hostiles 1 | . 1 . . . . . . . Parts Melted 3 | . 1 2 . . . . . . Heat Transferred 1961 | . 1221 740 . . . . . . Parts Sabotaged . | . . . . . . . . . Parts Stolen . | . . . . . . . . . Parts Stripped . | . . . . . . . . . Power Chain Reactions . | . . . . . . . . . Missiles Intercepted . | . . . . . . . . . Alert | -11 -10 -10 -9 -9 -9 -8 -8 -8 ------- Run | Scr Mat Min Mat Min Exi Min Mat Gar Peak Influence 370 | . 171 171 99 213 . . 13 370 Initial 66 | . . 66 . 38 . . . 11 Average 74 | . 60 80 48 68 . . 3 148 Maximum Alert Level 1 | . . . . 1 . . . 1 Low Security (%) 89 | . 100 100 100 86 . 100 100 61 Level 1 10 | . . . . 13 . . . 38 Level 2 . | . . . . . . . . . Level 3 . | . . . . . . . . . Level 4 . | . . . . . . . . . Level 5 . | . . . . . . . . . High Security . | . . . . . . . . . Max Security . | . . . . . . . . . Squads Dispatched 3 | . 1 . . 1 . . . 1 Investigation 1 | . 1 . . . . . . . Extermination . | . . . . . . . . . Reinforcement . | . . . . . . . . . Assault 2 | . . . . 1 . . . 1 Garrison . | . . . . . . . . . Intercept . | . . . . . . . . . Searches Triggered . | . . . . . . . . . Construction Impeded . | . . . . . . . . . Haulers Reinforced . | . . . . . . . . . Active Scanning Responses . | . . . . . . . . . Cargo Convoy Interrupts . | . . . . . . . . . Stealth | -11 -10 -10 -9 -9 -9 -8 -8 -8 --------- Run | Scr Mat Min Mat Min Exi Min Mat Gar Distress Signals 3 | . 3 . . . . . . . Communications Jammed . | . . . . . . . . . Distress Signals . | . . . . . . . . . Times Spotted 75 | . 16 4 4 17 . . . 34 Peak Tracking Total 14 | . 5 2 4 5 . . . 14 Tactical Retreats 6 | . . . 1 1 . . . 4 Traps | -11 -10 -10 -9 -9 -9 -8 -8 -8 ------- Run | Scr Mat Min Mat Min Exi Min Mat Gar Traps Triggered 5 | . 2 . . . . . . 3 Indirectly . | . . . . . . . . . Trap Hack Attempts . | . . . . . . . . . Triggered . | . . . . . . . . . Disarmed . | . . . . . . . . . Reprogrammed . | . . . . . . . . . Reused . | . . . . . . . . . Traps Extracted . | . . . . . . . . . Installed . | . . . . . . . . . Triggered . | . . . . . . . . . Machines | -11 -10 -10 -9 -9 -9 -8 -8 -8 ---------- Run | Scr Mat Min Mat Min Exi Min Mat Gar Machines Disabled 2 | . . . . . . . . 2 Max in Single Turn 1 | . . . . . . . . 1 Garrison Relay 2 | . . . . . . . . 2 Machines Sabotaged . | . . . . . . . . . Garrisons Compromised . | . . . . . . . . . Overloaded Fab Kills . | . . . . . . . . . Hacking | -11 -10 -10 -9 -9 -9 -8 -8 -8 --------- Run | Scr Mat Min Mat Min Exi Min Mat Gar Machines Accessed 7 | . 3 . 1 . 1 . 2 . Terminals 5 | . 3 . 1 . . . 1 . Fabricators . | . . . . . . . . . Repair Stations . | . . . . . . . . . Recycling Units . | . . . . . . . . . Scanalyzers . | . . . . . . . . . Garrison Access 1 | . . . . . . . 1 . Total Hacks 14 | . 6 . 1 . 1 . 6 . Successful 8 | . 1 . 1 . 1 . 5 . Failed 6 | . 5 . . . . . 1 . Catastrophic 1 | . 1 . . . . . . . Database Lockouts . | . . . . . . . . . Manual 9 | . 6 . 1 . 1 . 1 . Terminals 11 | . 6 . 1 . . . 4 . Fabricators . | . . . . . . . . . Repair Stations . | . . . . . . . . . Recycling Units . | . . . . . . . . . Scanalyzers . | . . . . . . . . . Garrison Access 2 | . . . . . . . 2 . Terminal Hacks 6 | . 1 . 1 . 1 . 3 . Branch Access Points 3 | . 1 . 1 . . . 1 . Security Status 1 | . . . . . . . 1 . Hauler Manifests 1 | . . . . . . . 1 . EX-Prototype ID Bank 1 | . . . . . 1 . . . Fabricator Hacks . | . . . . . . . . . Repair Station Hacks . | . . . . . . . . . Recycling Unit Hacks . | . . . . . . . . . Scanalyzer . | . . . . . . . . . Garrison Access Hacks 2 | . . . . . . . 2 . Unlock Access 1 | . . . . . . . 1 . Coupler Status 1 | . . . . . . . 1 . Unauthorized Hacks . | . . . . . . . . . Terminals . | . . . . . . . . . Fabricators . | . . . . . . . . . Repair Stations . | . . . . . . . . . Recycling Units . | . . . . . . . . . Scanalyzers . | . . . . . . . . . Garrison Access . | . . . . . . . . . Data Cores Recovered . | . . . . . . . . . Used . | . . . . . . . . . Hacking Detections 4 | . 3 . . . . . 1 . Full Trace Events 1 | . . . . . . . 1 . Feedback Events . | . . . . . . . . . Feedback Blocked . | . . . . . . . . . Robot Schematics Acquired . | . . . . . . . . . Robots Built . | . . . . . . . . . Authchips . | . . . . . . . . . Time . | . . . . . . . . . Total Robot Build Rating . | . . . . . . . . . Part Schematics Acquired . | . . . . . . . . . Parts Built . | . . . . . . . . . Authchips . | . . . . . . . . . Time . | . . . . . . . . . Total Part Build Rating . | . . . . . . . . . Parts Repaired . | . . . . . . . . . Time . | . . . . . . . . . Parts Recycled . | . . . . . . . . . Recycled Matter . | . . . . . . . . . Retrieved Matter . | . . . . . . . . . Retrieved Components . | . . . . . . . . . Parts Scanalyzed . | . . . . . . . . . Part Schematics Acquired . | . . . . . . . . . Parts Damaged . | . . . . . . . . . Bothacking | -11 -10 -10 -9 -9 -9 -8 -8 -8 ------------ Run | Scr Mat Min Mat Min Exi Min Mat Gar Used RIF Installer 1 | . . . . . . . . 1 Robots Hacked 1 | . . . . . . . . 1 Non-combat . | . . . . . . . . . Combat 1 | . . . . . . . . 1 Robot Hacks Applied 1 | . . . . . . . . 1 parse_system 1 | . . . . . . . . 1 Relay Couplers Released 8 | . . . . . . . . 8 Machine Destruction 8 | . . . . . . . . 8 Attached 1 | . . . . . . . . 1 Fabnet Peak Effective % . | . . . . . . . . . Robots Rewired . | . . . . . . . . . Allies Hacked . | . . . . . . . . . Hacks Repelled . | . . . . . . . . . Allies | -11 -10 -10 -9 -9 -9 -8 -8 -8 -------- Run | Scr Mat Min Mat Min Exi Min Mat Gar Total Allies 4 | . . . . 4 . . . . Largest Group 4 | . . . . 4 3 3 3 3 Highest-Rated Group 71 | . . . . 71 55 55 55 55 Highest-Rated Ally 31 | . . . . 31 31 31 31 31 Total Orders . | . . . . . . . . . Ally Attacks 38 | . . . . 30 . . . 8 Total Damage 480 | . . . . 355 . . . 125 Kills 8 | . . . . 7 . . . 1 Allies Corrupted . | . . . . . . . . . Allies Melted . | . . . . . . . . . Intel | -11 -10 -10 -9 -9 -9 -8 -8 -8 ------- Run | Scr Mat Min Mat Min Exi Min Mat Gar Robot Analysis Total . | . . . . . . . . . Derelict Logs Recovered 5 | . . 2 . 3 . . . . Drone Launches . | . . . . . . . . . Drone Recoveries . | . . . . . . . . . Exploration | -11 -10 -10 -9 -9 -9 -8 -8 -8 ------------- Run | Scr Mat Min Mat Min Exi Min Mat Gar Turns Passed 4571 | . 546 662 271 1773 681 38 146 454 Spaces Moved 2472 | 1 323 300 111 902 335 21 74 405 Core 15 | . . . . . . . . 15 Treads . | . . . . . . . . . Legs 2226 | 1 323 300 111 902 335 21 74 159 Wheels . | . . . . . . . . . Hover . | . . . . . . . . . Flight 231 | . . . . . . . . 231 Fastest Speed 27 | 120 120 190 190 120 190 190 190 27 Average Speed 149 | 120 120 190 190 157 190 190 190 70 Slowest Speed 260 | 120 190 260 190 190 190 190 190 200 Overloaded Moves . | . . . . . . . . . Propulsion Burnouts . | . . . . . . . . . Robots Hopped 3 | . . . . . . . . 3 Cave-ins Triggered 1 | . . . . . . . . 1 Exploration Rate (%) 43 | 1 47 61 18 100 76 11 12 61 Regions Visited 8 Branch Regions 4 Pre-discovered Areas 1 | . . . . 1 . . . . Known Exits Taken 3 | . 1 . 1 . . . 1 . Unknown Exits Taken 5 | 1 . 1 . 1 1 1 . . Scrap Searched 4 | . . 1 . 3 . . . . Spaces Dug 2 | . . . 2 . . . . . Terrain Destroyed 14 | . . . 2 . . . . 12 Melee 2 | . . . 2 . . . . . Projectile . | . . . . . . . . . AOE 12 | . . . . . . . . 12 Terrain Rammed . | . . . . . . . . . Walls Destroyed . | . . . . . . . . . Machines Disabled . | . . . . . . . . . Actions | -11 -10 -10 -9 -9 -9 -8 -8 -8 --------- Run | Scr Mat Min Mat Min Exi Min Mat Gar Total 3168 | . 417 355 166 1218 381 20 78 533 Wait 441 | . 35 25 48 260 43 . . 30 Move 2456 | . 322 299 110 901 334 20 74 396 Hop 3 | . . . . . . . . 3 Pick Up 25 | . 8 4 . 4 2 . . 7 Fast Attach 34 | . 8 3 . 6 . . 3 14 Attach 14 | . . 1 1 . . . . 12 Detach 6 | . . . . . . . . 6 Swap 16 | . 2 2 2 4 . . . 6 Drop 39 | . 9 4 . 9 2 . 1 14 Fire 58 | . 33 17 . . . . . 8 Melee 61 | . . . 5 34 . . . 22 Ram . | . . . . . . . . . Kick . | . . . . . . . . . Crush . | . . . . . . . . . Escape Stasis 15 | . . . . . . . . 15 Rewire . | . . . . . . . . . Trap . | . . . . . . . . . Miscellaneous . | . . . . . . . . . Route ------- -11/Scrapyard -10/Materials (discovered 3 exits: *Mat / *Min x2) -10/Mines -9/Materials (discovered 2 exits: *Min x2) -9/Mines (discovered 4 exits: *Mat x2 / *Exi / [*Zio]) -9/Exiles -8/Mines -8/Materials -8/Garrison (discovered 2 exits: [*Mat x2]) History --------- Turn | Location | Event 1 | -11/Scrapyard | Discovered new exit (range 0) 1 | -11/Scrapyard | Entered Materials 314 | -10/Materials | Discovered new exit (range 9) 449 | -10/Materials | Build established: Scavenger-Mutant 519 | -10/Materials | Identified exit to Mines 547 | -10/Materials | Entered Mines 743 | -10/Mines | A weapon hastily lodged in a ceiling crevice suddenly fell to the ground 829 | -10/Mines | Core integrity fell below 50% 885 | -10/Mines | Build established: Mutant 969 | -10/Mines | Learned Materials emergency access door positions 984 | -10/Mines | Discovered new exit (range 16) 1116 | -10/Mines | Learned Materials stockpile data 1209 | -10/Mines | Entered Materials 1209 | -9/Materials | Evolved 2 slots: Utility x2 1383 | -9/Materials | Identified exit to Mines 1480 | -9/Materials | Entered Mines 1490 | -9/Mines | Learned 8 Materials zone layouts 1505 | -9/Mines | Learned Materials stockpile data 1511 | -9/Mines | Build established: Scavenger-Mutant 1643 | -9/Mines | Core integrity fell below 50% 1703 | -9/Mines | Assembled infested the area 2016 | -9/Mines | Received a Rocket Launcher from a helpful Derelict 2039 | -9/Mines | Assisted by bots powering up and referring to "LRC-V3" 2369 | -9/Mines | Lost 3 parts (2u1w) 2431 | -9/Mines | A Derelict revealed a hidden shortcut to a safe place 2558 | -9/Mines | Discovered new exit (range 6) 2559 | -9/Mines | Met a Derelict testing a Signal Generator 2572 | -9/Mines | Found Signal Generator 2822 | -9/Mines | Discovered new exit (range 5) 2857 | -9/Mines | Discovered new exit (range 5) 3064 | -9/Mines | Learned location of Zion (-7) 3253 | -9/Mines | Entered Exiles 3253 | -9/Exiles | Accompanied by 3 allies 3299 | -9/Exiles | Met 8R-AWN 3333 | -9/Exiles | Met EX-HEX 3386 | -9/Exiles | Met EX-BIN 3409 | -9/Exiles | Aligned with FarCom system 3411 | -9/Exiles | Given EX-Vault access code 3455 | -9/Exiles | Opened EX-Vault 3469 | -9/Exiles | Found Superbattery 3513 | -9/Exiles | Warned to stay clear of 0b10 Research branches 3599 | -9/Exiles | Met EX-DEC 3672 | -9/Exiles | Visited The Gauntlet 3895 | -9/Exiles | Discovered new exit (range 12) 3934 | -9/Exiles | Left Exiles lab with Superbattery 3934 | -9/Exiles | Entered Mines 3934 | -8/Mines | Accompanied by 3 allies 3963 | -8/Mines | Discovered new exit (range 5) 3972 | -8/Mines | Entered Materials 3972 | -8/Materials | Accompanied by 3 allies 3972 | -8/Materials | Evolved 2 slots: Propulsion x2 4118 | -8/Materials | Identified exit to Garrison 4118 | -8/Materials | Entered Garrison 4118 | -8/Garrison | Accompanied by 3 allies 4212 | -8/Garrison | Triggered checkpoint 4272 | -8/Garrison | Lost 3 parts (1p1n1u) 4296 | -8/Garrison | Garrison Relay disabled 4374 | -8/Garrison | Triggered checkpoint 4376 | -8/Garrison | Triggered checkpoint 4429 | -8/Garrison | Core integrity fell below 50% 4429 | -8/Garrison | Triggered checkpoint 4469 | -8/Garrison | Discovered new exit (range 8) 4471 | -8/Garrison | Attempted to access garrison exit controls, blocked by remote lockdown 4488 | -8/Garrison | Crushed by falling debris 4519 | -8/Garrison | Lost 10 parts (2p6n1u1w) 4528 | -8/Garrison | Discovered new exit (range 15) 4535 | -8/Garrison | Installed Relay Interface Framework 4558 | -8/Garrison | Core integrity fell below 20% 4560 | -8/Garrison | Triggered checkpoint 4565 | -8/Garrison | Garrison Relay disabled 4572 | -8/Garrison | Destroyed by S-10 Pest with Light Assault Rifle Last Messages --------------- Reading system data... 04542_ S-10 Pest destroyed. 04543_ Acquired Flight Unit. 04544_ Lgt. Nuclear Core destroyed. 04545_ Surge Thruster destroyed. 04546_ Flight Unit destroyed. 04547_ Remote Datajack destroyed. 04548_ Flight Unit destroyed. 04550_ Lgt. Ion Engine destroyed. 04550_ Flight Unit destroyed. 04554_ Weight Redist. System destroyed. 04556_ L-31 Rogue suffers critical hit (Burn). 04557_ Dropped Flight Unit. 04557_ Dropped Katana. 04560_ Beams of light sweep through the air. An alarm sounds. 04565_ Garrison Relay disabled. 04565_ Relay Coupler [Swarmer] tumbles out of relay unit. 04565_ Relay Coupler [Hunter] tumbles out of relay unit. 04565_ Relay Coupler [Sentry] tumbles out of relay unit. 04569_ Acquired Relay Coupler [Swarmer]. Map ----- +----------------------------------------------------+ | ????????????????????????????????????????????? | | ????????????????????????????????????????????? | | ????????????????????????############????????? | | ????????????????????????#""""# #????????? | | ????????????????????????#" < #????????? | | ????????????????????????#""""# #????????? | | ????????????????????????######## #????????? | | ???????????????????????????????# #????????? | | ???????????????????????????????# % #????????? | | ???????????????????????????????# [#????????? | | ???????????????????????????????# = #????????? | | ???????????????????????????????# #????????? | | ???????????????????????????????# #????????? | | ???????????????????????????????# #????????? | | ???????????????????????????????# #????????? | | ???????????????????????????????# #????????? | | ???????????????????????????????# #????????? | | ???????????????????????????????# #????????? | | ???????????????????????????????# #????????? | | ???????????????????????????????# #????????? | | ???????????????????????????????# #????????? | | ???????????????????????????????# #????????? | | ???????????????????????????????# #????????? | | ?????????????????#######???????# #????????? | | ?????????????????#"" ""#???????# #????????? | | ????????????????###!@l########## #????????? | | ????????????????# gsgggbY = #????????? | | ????????????????# s sbgg / #????????? | | ????????????????########### ## #????????? | | ??????????????????????????# ## #????????? | | ??????????????????????????###### #????????? | | ???????????????????????????????#b #????????? | | ???????????????????????????????# #????????? | | ???????????????????????????????# #????????? | | ???????????????????????????????# ########## | | ???????????????????????????????# *%= * | | ???????????????????????????????# [ [ | | ???????????????????????????????# | | ???????????????????????????????########+### | | ????????????????????????????????????????#?# | | ??????????????????????????????????????????" | | ??????????????????????????????????????????" | | ??????????????????????????????????????????" | | ??????????????????????????????????????????" | | ??????????????????????????????????????????# | | ??????????????????????????????????????????# | | ??????????????????????????????????????????# | | ??????????????????????????????????????????# | | ??????????????????????????????????????????# | | ??????????????????????????????????????????# | +----------------------------------------------------+ Best States ------------- Heat Dissipation 55 Energy Generation 14 Energy Capacity 265 Matter Stores 300 Matter Capacity 300 Sight Range 16 Terrain Scan Density 10 Additional Mass Support 6 Armor Coverage 150 Evasion (%) 64 Targeting Accuracy 5 Offensive Hacking 10 Relay Coupler Types 1 Relay Coupler Value 41 Item Schematics ----------------- None Robot Schematics ------------------ None Fabricated ------------ Nothing Alien Tech Used ----------------- None Achievements -------------- None Challenges ------------ None Game ------ Seed FlyingBiocellSink Manual? 0 Play Time 00:32:56 Cumulative 90.7 hours Start 2022.06.03 @ 22:22:35 End 2022.06.03 @ 23:00:13 Sessions 1 Manual Loads 0 Difficulty Rogue Special Mode None Game No. 100 Rogue 100 Adventurer 0 Explorer 0 Win Type - Total 0 Types 0/0/0/0/0/0/0/0/0 Lore% 45 Gallery% 58 Achievement% 45 Wizard Run 0 Options --------- ASCII 0 Keyboard 0 Movement Mouse Keybinds 0 Fullscreen 1 Font 18/SmallcapsGlow Map View 76x50 Tactical HUD 1 Map Filters NONE Filters NONE Steam 1 RUN: cc18d500-34fd-4ecd-8e69-c3771fd9ce81